[Event "Titled Tuesday Blitz February 15 Early 2022"]
[White "Galyas, Miklos"]
[Black "Lopez Del Alamo, Antonio"]
[WhiteFideId "707244"]
[BlackFideId "2227339"]
[WhiteElo "2409"]
[BlackElo "2082"]
[Result "1-0"]
[Round "04"]
[TimeControl "180+1"]
[Date "2022.02.15"]
[WhiteClock "0:00:43"]
[BlackClock "0:01:04"]

1. c4 {[%clk 0:03:00]}  Nf6 {[%clk 0:02:59]} 2. Nc3 {[%clk 0:03:00]}  g6 {[%clk 0:02:59]} 3. g3 {[%clk 0:02:59]}  Bg7 {[%clk 0:02:59]} 4. Bg2 {[%clk 0:02:59]}  O-O {[%clk 0:02:59]} 5. d3 {[%clk 0:02:59]}  d6 {[%clk 0:03:00]} 6. Bg5 {[%clk 0:02:59]}  h6 {[%clk 0:03:00]} 7. Bd2 {[%clk 0:02:59]}  e5 {[%clk 0:03:00]} 8. e4 {[%clk 0:02:58]}  Kh7 {[%clk 0:02:56]} 9. Nge2 {[%clk 0:02:57]}  Ng8 {[%clk 0:02:51]} 10. O-O {[%clk 0:02:56]}  f5 {[%clk 0:02:52]} 11. exf5 {[%clk 0:02:56]}  gxf5 {[%clk 0:02:51]} 12. f4 {[%clk 0:02:56]}  Nc6 {[%clk 0:02:50]} 13. Be3 {[%clk 0:02:55]}  Nf6 {[%clk 0:02:49]} 14. Kh1 {[%clk 0:02:55]}  Ng4 {[%clk 0:02:49]} 15. Bg1 {[%clk 0:02:55]}  Nd4 {[%clk 0:02:43]} 16. h3 {[%clk 0:02:45]}  Nxe2 {[%clk 0:02:41]} 17. Qxe2 {[%clk 0:02:42]}  Nf6 {[%clk 0:02:42]} 18. Rad1 {[%clk 0:02:23]}  Re8 {[%clk 0:02:39]} 19. fxe5 {[%clk 0:02:16]}  dxe5 {[%clk 0:02:36]} 20. Nd5 {[%clk 0:02:09]}  c6 {[%clk 0:02:35]} 21. Nxf6+ {[%clk 0:02:09]}  Qxf6 {[%clk 0:02:36]} 22. g4 {[%clk 0:02:05]}  f4 {[%clk 0:02:30]} 23. Be4+ {[%clk 0:01:57]}  Kh8 {[%clk 0:02:30]} 24. Qf3 {[%clk 0:01:57]}  Be6 {[%clk 0:02:26]} 25. b3 {[%clk 0:01:57]}  Rad8 {[%clk 0:02:26]} 26. Rd2 {[%clk 0:01:50]}  a6 {[%clk 0:02:23]} 27. Rfd1 {[%clk 0:01:47]}  Bg8 {[%clk 0:02:16]} 28. d4 {[%clk 0:01:46]}  exd4 {[%clk 0:02:13]} 29. Bxd4 {[%clk 0:01:44]}  Qg5 {[%clk 0:01:59]} 30. Bxg7+ {[%clk 0:01:43]}  Kxg7 {[%clk 0:02:00]} 31. Rxd8 {[%clk 0:01:23]}  Rxd8 {[%clk 0:01:59]} 32. Rxd8 {[%clk 0:01:22]}  Qxd8 {[%clk 0:02:00]} 33. Qxf4 {[%clk 0:01:22]}  Bf7 {[%clk 0:01:52]} 34. Qe5+ {[%clk 0:01:21]}  Kg8 {[%clk 0:01:52]} 35. Bg2 {[%clk 0:01:16]}  Qh4 {[%clk 0:01:46]} 36. Kh2 {[%clk 0:01:15]}  Qd8 {[%clk 0:01:40]} 37. Qf4 {[%clk 0:01:09]}  Qg5 {[%clk 0:01:37]} 38. Qxg5+ {[%clk 0:01:03]}  hxg5 {[%clk 0:01:35]} 39. Kg3 {[%clk 0:01:04]}  Kg7 {[%clk 0:01:34]} 40. h4 {[%clk 0:01:04]}  gxh4+ {[%clk 0:01:33]} 41. Kxh4 {[%clk 0:01:04]}  Bg6 {[%clk 0:01:31]} 42. Kg5 {[%clk 0:01:03]}  Bb1 {[%clk 0:01:31]} 43. c5 {[%clk 0:00:49]}  Bxa2 {[%clk 0:01:30]} 44. b4 {[%clk 0:00:49]}  Kf7 {[%clk 0:01:28]} 45. Kf5 {[%clk 0:00:46]}  Ke7 {[%clk 0:01:17]} 46. Ke5 {[%clk 0:00:45]}  Bg8 {[%clk 0:01:16]} 47. g5 {[%clk 0:00:45]}  Bf7 {[%clk 0:01:04]} 48. Bh3 {[%clk 0:00:43]} 1-0


[Site "https://www.chess.com"]

[Event "Titled Tuesday Blitz February 15 Early 2022"]
[White "Garagulya, Konstantin"]
[Black "Abdrlauf, Elham"]
[WhiteFideId "4128931"]
[BlackFideId "1533533"]
[WhiteElo "2329"]
[BlackElo "2334"]
[Result "1-0"]
[Round "04"]
[TimeControl "180+1"]
[Date "2022.02.15"]
[WhiteClock "0:00:10"]
[BlackClock "0:00:02"]

1. d4 {[%clk 0:02:59]}  Nf6 {[%clk 0:02:57]} 2. Nf3 {[%clk 0:02:59]}  d5 {[%clk 0:02:57]} 3. c4 {[%clk 0:02:59]}  e6 {[%clk 0:02:57]} 4. Bg5 {[%clk 0:02:59]}  Be7 {[%clk 0:02:58]} 5. Nbd2 {[%clk 0:02:59]}  O-O {[%clk 0:02:58]} 6. e3 {[%clk 0:03:00]}  Nbd7 {[%clk 0:02:58]} 7. Qc2 {[%clk 0:03:00]}  h6 {[%clk 0:02:57]} 8. Bh4 {[%clk 0:03:00]}  b6 {[%clk 0:02:54]} 9. cxd5 {[%clk 0:02:59]}  exd5 {[%clk 0:02:54]} 10. Qc6 {[%clk 0:02:57]}  Rb8 {[%clk 0:02:55]} 11. Bg3 {[%clk 0:02:57]}  Rb7 {[%clk 0:02:19]} 12. Rc1 {[%clk 0:02:39]}  Nb8 {[%clk 0:02:18]} 13. Bxc7 {[%clk 0:02:37]}  Nxc6 {[%clk 0:02:17]} 14. Bxd8 {[%clk 0:02:38]}  Rxd8 {[%clk 0:02:03]} 15. Rxc6 {[%clk 0:02:36]}  Bd7 {[%clk 0:02:03]} 16. Rc1 {[%clk 0:02:21]}  Be8 {[%clk 0:02:01]} 17. Ba6 {[%clk 0:02:17]}  Rbb8 {[%clk 0:02:01]} 18. Bd3 {[%clk 0:02:02]}  Bd6 {[%clk 0:01:55]} 19. Ke2 {[%clk 0:02:02]}  b5 {[%clk 0:01:32]} 20. h3 {[%clk 0:01:53]}  a5 {[%clk 0:01:31]} 21. Rc2 {[%clk 0:01:46]}  a4 {[%clk 0:01:27]} 22. Rhc1 {[%clk 0:01:46]}  b4 {[%clk 0:01:27]} 23. b3 {[%clk 0:01:38]}  Ra8 {[%clk 0:01:04]} 24. Ne5 {[%clk 0:01:35]}  axb3 {[%clk 0:01:04]} 25. axb3 {[%clk 0:01:29]}  Ra3 {[%clk 0:01:02]} 26. f3 {[%clk 0:01:20]}  Kf8 {[%clk 0:00:59]} 27. Nc6 {[%clk 0:01:18]}  Rda8 {[%clk 0:00:58]} 28. Kf2 {[%clk 0:01:12]}  Ra2 {[%clk 0:00:56]} 29. Ne5 {[%clk 0:01:09]}  Bxe5 {[%clk 0:00:37]} 30. dxe5 {[%clk 0:01:09]}  Nd7 {[%clk 0:00:38]} 31. f4 {[%clk 0:01:07]}  Nc5 {[%clk 0:00:39]} 32. Ke2 {[%clk 0:00:52]}  Ne6 {[%clk 0:00:17]} 33. Nf3 {[%clk 0:00:49]}  g6 {[%clk 0:00:15]} 34. g3 {[%clk 0:00:45]}  R8a3 {[%clk 0:00:14]} 35. Rxa2 {[%clk 0:00:43]}  Rxa2+ {[%clk 0:00:15]} 36. Rc2 {[%clk 0:00:44]}  Ra3 {[%clk 0:00:15]} 37. Rb2 {[%clk 0:00:40]}  Nc5 {[%clk 0:00:15]} 38. Bc2 {[%clk 0:00:40]}  Bd7 {[%clk 0:00:13]} 39. g4 {[%clk 0:00:38]}  Bb5+ {[%clk 0:00:10]} 40. Kd2 {[%clk 0:00:37]}  Bf1 {[%clk 0:00:10]} 41. h4 {[%clk 0:00:36]}  Bg2 {[%clk 0:00:10]} 42. Nd4 {[%clk 0:00:36]}  Be4 {[%clk 0:00:09]} 43. Nc6 {[%clk 0:00:33]}  Ra1 {[%clk 0:00:04]} 44. Nxb4 {[%clk 0:00:32]}  Rh1 {[%clk 0:00:04]} 45. Kc3 {[%clk 0:00:29]}  Rxh4 {[%clk 0:00:03]} 46. Bxe4 {[%clk 0:00:28]}  Nxe4+ {[%clk 0:00:04]} 47. Kd4 {[%clk 0:00:28]}  Rxg4 {[%clk 0:00:03]} 48. Nxd5 {[%clk 0:00:28]}  Ng3 {[%clk 0:00:04]} 49. b4 {[%clk 0:00:28]}  Nf5+ {[%clk 0:00:04]} 50. Kd3 {[%clk 0:00:28]}  Rg1 {[%clk 0:00:04]} 51. e4 {[%clk 0:00:25]}  Ne7 {[%clk 0:00:03]} 52. b5 {[%clk 0:00:23]}  Rd1+ {[%clk 0:00:03]} 53. Kc4 {[%clk 0:00:24]}  Rc1+ {[%clk 0:00:04]} 54. Kd4 {[%clk 0:00:23]}  Nc8 {[%clk 0:00:03]} 55. b6 {[%clk 0:00:22]}  Rd1+ {[%clk 0:00:04]} 56. Ke3 {[%clk 0:00:19]}  Nxb6 {[%clk 0:00:02]} 57. Rxb6 {[%clk 0:00:18]}  Re1+ {[%clk 0:00:02]} 58. Kf3 {[%clk 0:00:18]}  Rf1+ {[%clk 0:00:03]} 59. Ke2 {[%clk 0:00:18]}  Ra1 {[%clk 0:00:03]} 60. Rb8+ {[%clk 0:00:18]}  Kg7 {[%clk 0:00:03]} 61. Nf6 {[%clk 0:00:19]}  h5 {[%clk 0:00:04]} 62. Rg8+ {[%clk 0:00:18]}  Kh6 {[%clk 0:00:05]} 63. Rh8+ {[%clk 0:00:18]}  Kg7 {[%clk 0:00:05]} 64. Rh7+ {[%clk 0:00:18]}  Kf8 {[%clk 0:00:06]} 65. e6 {[%clk 0:00:18]}  fxe6 {[%clk 0:00:07]} 66. Nd7+ {[%clk 0:00:18]}  Kg8 {[%clk 0:00:07]} 67. Re7 {[%clk 0:00:18]}  Ra6 {[%clk 0:00:03]} 68. Nc5 {[%clk 0:00:16]}  Ra2+ {[%clk 0:00:02]} 69. Ke3 {[%clk 0:00:16]}  Ra3+ {[%clk 0:00:02]} 70. Kd4 {[%clk 0:00:17]}  h4 {[%clk 0:00:02]} 71. Ke5 {[%clk 0:00:14]}  h3 {[%clk 0:00:03]} 72. Kf6 {[%clk 0:00:15]}  h2 {[%clk 0:00:03]} 73. Nxe6 {[%clk 0:00:14]}  Ra6 {[%clk 0:00:02]} 74. Kxg6 {[%clk 0:00:12]}  Ra8 {[%clk 0:00:02]} 75. Rg7+ {[%clk 0:00:11]}  Kh8 {[%clk 0:00:03]} 76. Rh7+ {[%clk 0:00:12]}  Kg8 {[%clk 0:00:03]} 77. Rxh2 {[%clk 0:00:12]}  Ra5 {[%clk 0:00:02]} 78. Rb2 {[%clk 0:00:10]}  Ra8 {[%clk 0:00:01]} 79. Rd2 {[%clk 0:00:10]}  Kh8 {[%clk 0:00:02]} 80. Rd8+ {[%clk 0:00:10]} 1-0


[Site "https://www.chess.com"]

[Event "Titled Tuesday Blitz February 15 Early 2022"]
[White "Gelman, Alexander"]
[Black "Subelj, Jan"]
[WhiteFideId "4118316"]
[BlackFideId "14618583"]
[WhiteElo "2375"]
[BlackElo "2248"]
[Result "1-0"]
[Round "04"]
[TimeControl "180+1"]
[Date "2022.02.15"]
[WhiteClock "0:01:25"]
[BlackClock "0:01:41"]

1. d4 {[%clk 0:03:00]}  d5 {[%clk 0:02:57]} 2. Nc3 {[%clk 0:03:01]}  Nf6 {[%clk 0:02:55]} 3. Bf4 {[%clk 0:03:01]}  e6 {[%clk 0:02:54]} 4. Nb5 {[%clk 0:03:01]}  Na6 {[%clk 0:02:53]} 5. e3 {[%clk 0:03:01]}  c6 {[%clk 0:02:53]} 6. Nc3 {[%clk 0:03:01]}  Nc7 {[%clk 0:02:48]} 7. Nf3 {[%clk 0:03:01]}  Bd6 {[%clk 0:02:48]} 8. Ne5 {[%clk 0:03:01]}  O-O {[%clk 0:02:42]} 9. Qf3 {[%clk 0:03:01]}  Bb4 {[%clk 0:02:41]} 10. Bd3 {[%clk 0:02:57]}  Nb5 {[%clk 0:02:40]} 11. O-O {[%clk 0:02:37]}  Nxc3 {[%clk 0:02:37]} 12. bxc3 {[%clk 0:02:37]}  Bxc3 {[%clk 0:02:38]} 13. Rab1 {[%clk 0:02:36]}  Ne4 {[%clk 0:02:25]} 14. Bxe4 {[%clk 0:02:24]}  dxe4 {[%clk 0:02:26]} 15. Qxe4 {[%clk 0:02:23]}  Bd7 {[%clk 0:02:12]} 16. Rxb7 {[%clk 0:02:17]}  Be8 {[%clk 0:02:09]} 17. Nxc6 {[%clk 0:01:55]}  Bxc6 {[%clk 0:02:05]} 18. Qxc6 {[%clk 0:01:55]}  Rc8 {[%clk 0:02:06]} 19. Bc7 {[%clk 0:01:34]}  Bd2 {[%clk 0:01:41]} 20. Rd1 {[%clk 0:01:25]} 1-0


[Site "https://www.chess.com"]

[Event "Titled Tuesday Blitz February 15 Early 2022"]
[White "Goryachkina, Aleksandra"]
[Black "Stankovic, Ivan G"]
[WhiteFideId "4147103"]
[BlackFideId "902837"]
[WhiteElo "2426"]
[BlackElo "2195"]
[Result "1-0"]
[Round "04"]
[TimeControl "180+1"]
[Date "2022.02.15"]
[WhiteClock "0:00:18"]
[BlackClock "0:00:03"]

1. e4 {[%clk 0:02:59]}  c5 {[%clk 0:03:00]} 2. Nf3 {[%clk 0:02:59]}  Nc6 {[%clk 0:03:01]} 3. Bb5 {[%clk 0:02:56]}  g6 {[%clk 0:03:01]} 4. O-O {[%clk 0:02:53]}  Bg7 {[%clk 0:03:00]} 5. Re1 {[%clk 0:02:53]}  Nf6 {[%clk 0:02:58]} 6. e5 {[%clk 0:02:53]}  Nd5 {[%clk 0:02:58]} 7. Nc3 {[%clk 0:02:52]}  Nc7 {[%clk 0:02:58]} 8. Bxc6 {[%clk 0:02:52]}  dxc6 {[%clk 0:02:58]} 9. d3 {[%clk 0:02:52]}  O-O {[%clk 0:02:58]} 10. h3 {[%clk 0:02:51]}  Ne6 {[%clk 0:02:54]} 11. Ne4 {[%clk 0:02:48]}  b6 {[%clk 0:02:54]} 12. Neg5 {[%clk 0:02:19]}  c4 {[%clk 0:02:34]} 13. dxc4 {[%clk 0:02:09]}  Qxd1 {[%clk 0:02:32]} 14. Rxd1 {[%clk 0:02:09]}  Nxg5 {[%clk 0:02:32]} 15. Bxg5 {[%clk 0:02:09]}  f6 {[%clk 0:02:18]} 16. exf6 {[%clk 0:02:09]}  exf6 {[%clk 0:02:18]} 17. Be3 {[%clk 0:02:09]}  Bf5 {[%clk 0:02:15]} 18. Nd4 {[%clk 0:02:05]}  Bd7 {[%clk 0:02:14]} 19. Rd2 {[%clk 0:02:02]}  f5 {[%clk 0:02:09]} 20. Nf3 {[%clk 0:01:08]}  Be6 {[%clk 0:02:02]} 21. Bd4 {[%clk 0:01:07]}  Bxc4 {[%clk 0:01:59]} 22. Bxg7 {[%clk 0:01:07]}  Kxg7 {[%clk 0:01:59]} 23. Ne5 {[%clk 0:01:06]}  Bd5 {[%clk 0:01:48]} 24. c4 {[%clk 0:01:05]}  Be6 {[%clk 0:01:33]} 25. Rd6 {[%clk 0:01:03]}  Kf6 {[%clk 0:01:17]} 26. Nxc6 {[%clk 0:01:03]}  Rfe8 {[%clk 0:01:00]} 27. Re1 {[%clk 0:01:01]}  Kf7 {[%clk 0:01:00]} 28. b3 {[%clk 0:00:59]}  f4 {[%clk 0:00:48]} 29. Nd4 {[%clk 0:00:48]}  Bc8 {[%clk 0:00:20]} 30. Rxe8 {[%clk 0:00:42]}  Kxe8 {[%clk 0:00:21]} 31. Rf6 {[%clk 0:00:39]}  g5 {[%clk 0:00:18]} 32. Nf3 {[%clk 0:00:29]}  Ke7 {[%clk 0:00:08]} 33. Rh6 {[%clk 0:00:28]}  Bf5 {[%clk 0:00:07]} 34. Nxg5 {[%clk 0:00:25]}  Rg8 {[%clk 0:00:05]} 35. Nf3 {[%clk 0:00:23]}  Bg6 {[%clk 0:00:03]} 36. Rh4 {[%clk 0:00:19]}  Rf8 {[%clk 0:00:03]} 37. Ne5 {[%clk 0:00:18]} 1-0


[Site "https://www.chess.com"]

[Event "Titled Tuesday Blitz February 15 Early 2022"]
[White "Gozzoli, Yannick"]
[Black "Kraus, Tomas"]
[WhiteFideId "616915"]
[BlackFideId "331708"]
[WhiteElo "2609"]
[BlackElo "2389"]
[Result "1-0"]
[Round "04"]
[TimeControl "180+1"]
[Date "2022.02.15"]
[WhiteClock "0:00:50"]
[BlackClock "0:00:06"]

1. d4 {[%clk 0:03:00]}  Nf6 {[%clk 0:02:42]} 2. Nf3 {[%clk 0:02:58]}  d5 {[%clk 0:02:41]} 3. c4 {[%clk 0:02:58]}  e6 {[%clk 0:02:41]} 4. g3 {[%clk 0:02:59]}  Bb4+ {[%clk 0:02:37]} 5. Bd2 {[%clk 0:02:58]}  Bd6 {[%clk 0:02:36]} 6. Nc3 {[%clk 0:02:57]}  c6 {[%clk 0:02:31]} 7. Bg5 {[%clk 0:02:55]}  Nbd7 {[%clk 0:02:25]} 8. Qb3 {[%clk 0:02:45]}  Qb6 {[%clk 0:02:16]} 9. c5 {[%clk 0:02:36]}  Qxb3 {[%clk 0:02:15]} 10. axb3 {[%clk 0:02:37]}  Bc7 {[%clk 0:02:13]} 11. b4 {[%clk 0:02:37]}  e5 {[%clk 0:02:01]} 12. Bxf6 {[%clk 0:02:34]}  gxf6 {[%clk 0:02:00]} 13. e3 {[%clk 0:02:30]}  b5 {[%clk 0:01:32]} 14. Be2 {[%clk 0:01:55]}  Bb7 {[%clk 0:01:29]} 15. Nh4 {[%clk 0:01:52]}  a5 {[%clk 0:01:24]} 16. bxa5 {[%clk 0:01:50]}  Rxa5 {[%clk 0:01:23]} 17. Kd2 {[%clk 0:01:45]}  O-O {[%clk 0:01:20]} 18. b4 {[%clk 0:01:41]}  Raa8 {[%clk 0:01:17]} 19. Bg4 {[%clk 0:01:38]}  Rfd8 {[%clk 0:01:05]} 20. Rxa8 {[%clk 0:01:33]}  Bxa8 {[%clk 0:01:05]} 21. Ra1 {[%clk 0:01:34]}  f5 {[%clk 0:00:27]} 22. Bxf5 {[%clk 0:01:30]}  exd4 {[%clk 0:00:23]} 23. exd4 {[%clk 0:01:30]}  Nf6 {[%clk 0:00:17]} 24. Ra7 {[%clk 0:01:20]}  Ne8 {[%clk 0:00:17]} 25. Bh3 {[%clk 0:01:10]}  Rb8 {[%clk 0:00:16]} 26. Nf5 {[%clk 0:01:09]}  Bb7 {[%clk 0:00:13]} 27. Rxb7 {[%clk 0:01:01]}  Rxb7 {[%clk 0:00:12]} 28. Ne7+ {[%clk 0:01:02]}  Kf8 {[%clk 0:00:13]} 29. Nxc6 {[%clk 0:01:03]}  Nf6 {[%clk 0:00:12]} 30. Bc8 {[%clk 0:01:02]}  Rb8 {[%clk 0:00:11]} 31. Nxb8 {[%clk 0:01:02]}  Bxb8 {[%clk 0:00:12]} 32. Bb7 {[%clk 0:01:00]}  Ng4 {[%clk 0:00:11]} 33. Ke2 {[%clk 0:00:59]}  Bc7 {[%clk 0:00:08]} 34. Nxb5 {[%clk 0:00:57]}  Bd8 {[%clk 0:00:07]} 35. h3 {[%clk 0:00:56]}  Nh6 {[%clk 0:00:06]} 36. g4 {[%clk 0:00:50]}  f5 {[%clk 0:00:06]} 37. f3 {[%clk 0:00:50]}  Bf6 {[%clk 0:00:06]} 38. Bxd5 {[%clk 0:00:50]}  fxg4 {[%clk 0:00:06]} 39. hxg4 {[%clk 0:00:50]}  Nf7 {[%clk 0:00:06]} 40. Bxf7 {[%clk 0:00:50]}  Kxf7 {[%clk 0:00:06]} 41. d5 {[%clk 0:00:50]} 1-0


[Site "https://www.chess.com"]

[Event "Titled Tuesday Blitz February 15 Early 2022"]
[White "Gubanov, Oleg"]
[Black "Ardila, Oscar Humberto"]
[WhiteFideId "14115115"]
[BlackFideId "4404742"]
[WhiteElo "2080"]
[BlackElo "1898"]
[Result "1-0"]
[Round "04"]
[TimeControl "180+1"]
[Date "2022.02.15"]
[WhiteClock "0:01:05"]
[BlackClock "0:01:34"]

1. e4 {[%clk 0:03:00]}  e5 {[%clk 0:02:59]} 2. Nf3 {[%clk 0:03:00]}  Nc6 {[%clk 0:02:59]} 3. Bb5 {[%clk 0:03:00]}  Nf6 {[%clk 0:02:59]} 4. d3 {[%clk 0:03:00]}  Bc5 {[%clk 0:02:59]} 5. O-O {[%clk 0:02:59]}  d6 {[%clk 0:02:57]} 6. h3 {[%clk 0:02:57]}  O-O {[%clk 0:02:57]} 7. c3 {[%clk 0:02:57]}  h6 {[%clk 0:02:56]} 8. d4 {[%clk 0:02:52]}  exd4 {[%clk 0:02:53]} 9. cxd4 {[%clk 0:02:52]}  Bb6 {[%clk 0:02:54]} 10. Nc3 {[%clk 0:02:48]}  Bd7 {[%clk 0:02:43]} 11. Re1 {[%clk 0:02:44]}  a6 {[%clk 0:02:42]} 12. Bc4 {[%clk 0:02:40]}  Na5 {[%clk 0:02:42]} 13. Bd3 {[%clk 0:02:39]}  c5 {[%clk 0:02:38]} 14. d5 {[%clk 0:02:29]}  c4 {[%clk 0:02:35]} 15. Bc2 {[%clk 0:02:19]}  Re8 {[%clk 0:02:33]} 16. Bf4 {[%clk 0:02:12]}  Bc7 {[%clk 0:02:32]} 17. e5 {[%clk 0:01:56]}  dxe5 {[%clk 0:02:31]} 18. Nxe5 {[%clk 0:01:56]}  b5 {[%clk 0:02:05]} 19. Bg3 {[%clk 0:01:40]}  Nb7 {[%clk 0:01:51]} 20. Qd4 {[%clk 0:01:30]}  Bd6 {[%clk 0:01:48]} 21. a4 {[%clk 0:01:18]}  b4 {[%clk 0:01:45]} 22. Ne4 {[%clk 0:01:18]}  Nxe4 {[%clk 0:01:44]} 23. Qxe4 {[%clk 0:01:18]}  Bxe5 {[%clk 0:01:39]} 24. Qh7+ {[%clk 0:01:12]}  Kf8 {[%clk 0:01:38]} 25. Qh8+ {[%clk 0:01:10]}  Ke7 {[%clk 0:01:38]} 26. Rxe5+ {[%clk 0:01:10]}  Be6 {[%clk 0:01:39]} 27. Qxg7 {[%clk 0:01:06]}  Rg8 {[%clk 0:01:34]} 28. Rxe6+ {[%clk 0:01:05]} 1-0


[Site "https://www.chess.com"]

[Event "Titled Tuesday Blitz February 15 Early 2022"]
[White "Guliev, Logman"]
[Black "Osmonbekov, Talaibek"]
[WhiteFideId "13400061"]
[BlackFideId "2017253"]
[WhiteElo "2128"]
[BlackElo "2135"]
[Result "0-1"]
[Round "04"]
[TimeControl "180+1"]
[Date "2022.02.15"]
[WhiteClock "0:00:03"]
[BlackClock "0:00:10"]

1. e4 {[%clk 0:02:56]}  c5 {[%clk 0:02:59]} 2. Nf3 {[%clk 0:02:55]}  d6 {[%clk 0:02:59]} 3. d4 {[%clk 0:02:55]}  cxd4 {[%clk 0:03:00]} 4. Nxd4 {[%clk 0:02:55]}  Nf6 {[%clk 0:03:01]} 5. Nc3 {[%clk 0:02:55]}  g6 {[%clk 0:03:01]} 6. Be3 {[%clk 0:02:54]}  Bg7 {[%clk 0:03:02]} 7. f3 {[%clk 0:02:55]}  O-O {[%clk 0:03:02]} 8. Qd2 {[%clk 0:02:55]}  Nc6 {[%clk 0:03:03]} 9. Bc4 {[%clk 0:02:55]}  Nxd4 {[%clk 0:02:59]} 10. Bxd4 {[%clk 0:02:55]}  Be6 {[%clk 0:03:00]} 11. Bb3 {[%clk 0:02:54]}  Qa5 {[%clk 0:02:58]} 12. O-O-O {[%clk 0:02:49]}  Bxb3 {[%clk 0:02:46]} 13. cxb3 {[%clk 0:02:49]}  b5 {[%clk 0:02:45]} 14. Kb1 {[%clk 0:02:49]}  Rfc8 {[%clk 0:02:41]} 15. h4 {[%clk 0:02:36]}  Rc6 {[%clk 0:02:32]} 16. h5 {[%clk 0:02:25]}  Rac8 {[%clk 0:02:30]} 17. hxg6 {[%clk 0:02:25]}  hxg6 {[%clk 0:02:24]} 18. g4 {[%clk 0:02:16]}  b4 {[%clk 0:02:08]} 19. Nd5 {[%clk 0:02:13]}  Rc2 {[%clk 0:02:02]} 20. Nxf6+ {[%clk 0:01:43]}  exf6 {[%clk 0:01:57]} 21. Qxc2 {[%clk 0:01:32]}  Rxc2 {[%clk 0:01:56]} 22. Kxc2 {[%clk 0:01:33]}  d5 {[%clk 0:01:53]} 23. Kb1 {[%clk 0:01:31]}  dxe4 {[%clk 0:01:51]} 24. fxe4 {[%clk 0:01:21]}  Qc7 {[%clk 0:01:39]} 25. Ka1 {[%clk 0:01:14]}  Qb7 {[%clk 0:01:36]} 26. Be3 {[%clk 0:01:06]}  Qxe4 {[%clk 0:01:30]} 27. Bxa7 {[%clk 0:00:44]}  f5 {[%clk 0:00:52]} 28. gxf5 {[%clk 0:00:41]}  Qxf5 {[%clk 0:00:43]} 29. Rd8+ {[%clk 0:00:33]}  Bf8 {[%clk 0:00:42]} 30. Rc1 {[%clk 0:00:25]}  Qf6 {[%clk 0:00:32]} 31. Re8 {[%clk 0:00:14]}  Qf4 {[%clk 0:00:26]} 32. Rce1 {[%clk 0:00:11]}  Kg7 {[%clk 0:00:23]} 33. Be3 {[%clk 0:00:10]}  Qg4 {[%clk 0:00:16]} 34. Bd2 {[%clk 0:00:09]}  Bd6 {[%clk 0:00:14]} 35. Bc1 {[%clk 0:00:09]}  f6 {[%clk 0:00:13]} 36. R8e4 {[%clk 0:00:08]}  Qg3 {[%clk 0:00:12]} 37. Rd1 {[%clk 0:00:07]}  Be5 {[%clk 0:00:12]} 38. Rxb4 {[%clk 0:00:07]}  g5 {[%clk 0:00:12]} 39. Rc4 {[%clk 0:00:08]}  Kg6 {[%clk 0:00:11]} 40. Re4 {[%clk 0:00:07]}  Qf3 {[%clk 0:00:12]} 41. Rde1 {[%clk 0:00:06]}  Qf2 {[%clk 0:00:11]} 42. R4e2 {[%clk 0:00:06]}  Qf3 {[%clk 0:00:11]} 43. Re3 {[%clk 0:00:06]}  Qf5 {[%clk 0:00:11]} 44. R3e2 {[%clk 0:00:06]}  g4 {[%clk 0:00:11]} 45. Rg1 {[%clk 0:00:05]}  g3 {[%clk 0:00:11]} 46. Rc2 {[%clk 0:00:04]}  Qxc2 {[%clk 0:00:11]} 47. a3 {[%clk 0:00:03]}  Qf2 {[%clk 0:00:11]} 48. Ka2 {[%clk 0:00:03]}  Qxg1 {[%clk 0:00:10]} 0-1


[Site "https://www.chess.com"]

[Event "Titled Tuesday Blitz February 15 Early 2022"]
[White "Gunina, Valentina"]
[Black "Willow, Jonah B"]
[WhiteFideId "4167570"]
[BlackFideId "438804"]
[WhiteElo "2465"]
[BlackElo "2261"]
[Result "0-1"]
[Round "04"]
[TimeControl "180+1"]
[Date "2022.02.15"]
[WhiteClock "0:01:53"]
[BlackClock "0:01:57"]

1. d4 {[%clk 0:03:00]}  Nf6 {[%clk 0:02:59]} 2. c4 {[%clk 0:02:49]}  e6 {[%clk 0:02:59]} 3. Nf3 {[%clk 0:02:49]}  c5 {[%clk 0:02:58]} 4. d5 {[%clk 0:02:49]}  exd5 {[%clk 0:02:59]} 5. cxd5 {[%clk 0:02:49]}  d6 {[%clk 0:03:00]} 6. Nc3 {[%clk 0:02:49]}  g6 {[%clk 0:03:01]} 7. Bf4 {[%clk 0:02:47]}  Bg7 {[%clk 0:03:00]} 8. e3 {[%clk 0:02:47]}  O-O {[%clk 0:02:58]} 9. h3 {[%clk 0:02:47]}  Na6 {[%clk 0:02:47]} 10. Bxa6 {[%clk 0:02:44]}  bxa6 {[%clk 0:02:47]} 11. O-O {[%clk 0:02:44]}  Rb8 {[%clk 0:02:47]} 12. b3 {[%clk 0:02:31]}  Re8 {[%clk 0:02:41]} 13. Rc1 {[%clk 0:02:28]}  Ne4 {[%clk 0:02:38]} 14. Nxe4 {[%clk 0:02:27]}  Rxe4 {[%clk 0:02:39]} 15. Nd2 {[%clk 0:02:26]}  Rxf4 {[%clk 0:02:28]} 16. exf4 {[%clk 0:02:24]}  a5 {[%clk 0:02:25]} 17. Re1 {[%clk 0:02:22]}  a4 {[%clk 0:02:21]} 18. bxa4 {[%clk 0:02:21]}  Bd4 {[%clk 0:02:14]} 19. Nf3 {[%clk 0:02:12]}  Bb2 {[%clk 0:01:57]} 20. Rb1 {[%clk 0:02:10]}  Bf5 {[%clk 0:01:57]} 21. Rxb2 {[%clk 0:01:53]}  Rxb2 {[%clk 0:01:58]} 22. Re2 {[%clk 0:01:53]}  Rb1 {[%clk 0:01:57]} 0-1


[Site "https://www.chess.com"]